Cogmind - Beta 14 @@@ ROGUE MODE // 2024.09.13 @ 18:55:37 Player: CrossedViper Result: Destroyed by Cetus Guard with Advanced Variable Charge Gun Performance ------------- Evolutions (4) 2000 Regions Visited (12) 2400 Robots Destroyed (243) 1215 Value Destroyed (9164) 9164 Prototype IDs (24) 480 Alien Tech Used (0) 0 Bonus (4304) 4304 TOTAL SCORE: 19563 Bonus ------- Triggered High Security 500 High Alert Combat Kills 2251 Follower Combat Kills 1914 Met Imprinter 300 Was Imprinted 300 Friendly Fire -961 Cogmind --------- Core Integrity 0/850 Matter 240/300 Energy 155/340 System Corruption 5% Temperature Danger (446) Movement Core (1900) Ox37 Location -6/Cetus Parts ------- > --- POWER (1) -------- Heavy Antimatter Reactor > --- PROPULSION (4) --- Enhanced Flexi-carbon Leg > --- UTILITY (6) ------ Improved Heat Sink Huge Storage Unit Experimental Optical Array 0b10 Decoder Chip [Scout] Advanced Targeting Computer Core Analyzer > --- WEAPON (4) ------- Cooled Particle Cannon Cooled Plasma Cannon > --- INVENTORY (25) --- Advanced Energy Well Experimental Optical Array Advanced Terrain Scanner 0b10 Decoder Chip [Looter] Weapon Cycler Transmission Jammer Experimental ECM Suite Experimental Utility Shielding Experimental Utility Shielding Experimental Utility Shielding Hacking Suite Hacking Drone Bay (1/1) Multitool Peak State ------------ > --- POWER ------------ Cold Fusion Reactor > --- PROPULSION ------- Enhanced Flexi-carbon Leg Enhanced Armored Leg Enhanced Armored Leg Advanced Myomer Leg > --- UTILITY ---------- Improved Cooling System Huge Storage Unit Experimental Optical Array Advanced Targeting Computer Core Analyzer Hacking Drone Bay > --- WEAPON ----------- Heavy Wave Gun Heavy Wave Gun Heavy Wave Gun Enhanced Autogun > --- INVENTORY -------- Heavy Antimatter Reactor Heavy Antimatter Reactor Enhanced Flexi-carbon Leg Enhanced Flexi-carbon Leg Improved Heat Sink High-capacity Storage Unit Experimental Optical Array Advanced Terrain Scanner 0b10 Decoder Chip [Looter] 0b10 Decoder Chip [Scout] Experimental ECM Suite Heavy Tesla Rifle Heavy Tesla Rifle Plasma Cannon Plasma Cannon Cooled Particle Cannon Multitool [Rating: 101] Favorites ----------- Power Cold Fusion Reactor Engine Improved Ion Engine Reactor Cold Fusion Reactor Propulsion Light Treads Treads Light Treads Leg Enhanced Armored Leg Wheel Subdweller Monowheel Utility Advanced Targeting Computer Device Improved Cooling System Storage Huge Storage Unit Processor Advanced Targeting Computer Protection Experimental Utility Shielding Weapon Enhanced Autogun Energy Gun Heavy Wave Gun Energy Cannon Cooled Plasma Cannon Ballistic Gun Enhanced Autogun Ballistic Cannon Antimatter Cannon Launcher Rocket Launcher Slashing Weapon Mining Claw Build | -11 -10 -10 -10 -8 -7 -7 -7 -7 -6 -6 -6 -6 ------- Run | Yrd Mat Min Sub Mat Fac Low Low Zio Pro Fac Ext Cet Slots Evolved 8 | . . . . 4 2 . . . . 2 . . Power . | . . . . . . . . . . . . . Propulsion 2 | . . . . 1 . . . . . 1 . . Utility 4 | . . . . 2 1 . . . . 1 . . Weapon 2 | . . . . 1 1 . . . . . . . Parts Attached 155 | 7 . 5 27 29 32 2 4 5 . 24 14 6 Power 14 | 1 . 2 1 3 5 . . . . 1 . 1 Engine 9 | 1 . 2 1 3 2 . . . . . . . Core . | . . . . . . . . . . . . . Reactor 5 | . . . . . 3 . . . . 1 . 1 Propulsion 39 | 2 . . 6 7 9 1 . . . 4 10 . Treads 17 | 2 . . 1 7 6 . . . . . 1 . Leg 17 | . . . . . 3 1 . . . 4 9 . Wheel 5 | . . . 5 . . . . . . . . . Hover . | . . . . . . . . . . . . . Flight . | . . . . . . . . . . . . . Utility 29 | 2 . . 4 6 3 . . 1 . 11 1 1 Device 16 | 1 . . 3 1 2 . . . . 7 1 1 Storage 4 | 1 . . 1 1 . . . 1 . . . . Processor 8 | . . . . 4 1 . . . . 3 . . Hackware . | . . . . . . . . . . . . . Protection 1 | . . . . . . . . . . 1 . . Artifact . | . . . . . . . . . . . . . Weapon 73 | 2 . 3 16 13 15 1 4 4 . 8 3 4 Energy Gun 25 | 2 . 1 1 4 6 1 3 3 . 1 1 2 Energy Cannon 14 | . . . 4 . 2 . 1 . . 5 . 2 Ballistic Gun 22 | . . . 9 7 5 . . 1 . . . . Ballistic Cannon 5 | . . 1 . . . . . . . 2 2 . Launcher 4 | . . . . 2 2 . . . . . . . Special Weapon . | . . . . . . . . . . . . . Impact Weapon . | . . . . . . . . . . . . . Slashing Weapon 3 | . . 1 2 . . . . . . . . . Piercing Weapon . | . . . . . . . . . . . . . Special Melee Weapon . | . . . . . . . . . . . . . Unidentified Prototypes 24 | . . . . 3 13 . . . . 6 2 . Parts Lost 44 | . . . 5 9 6 2 . . . 6 11 5 Power 4 | . . . . 2 . . . . . 1 1 . Propulsion 19 | . . . 4 4 3 . . . . 1 5 2 Utility 4 | . . . 1 1 . . . . . 1 . 1 Weapon 17 | . . . . 2 3 2 . . . 3 5 2 Highest Loss Streak 10 | . . . 2 6 6 1 . . . 4 10 5 To Critical Strikes 1 | . . . . . 1 . . . . . . . Average Slot Usage (%) 98 | . 100 100 99 94 97 99 99 95 100 99 99 90 Engine 6 | . 14 14 14 8 6 . . . . . . . Reactor 3 | . . . . . . 7 7 7 7 6 5 6 Treads 9 | . 28 28 13 20 19 . . . . . . 6 Leg 11 | . . . . . 2 23 23 23 23 26 25 11 Wheel 4 | . . . 14 4 . . . . . . . . Device 8 | . 14 14 13 6 5 7 7 7 7 5 6 5 Storage 9 | . 14 14 14 9 7 7 7 7 7 6 6 6 Processor 15 | . . . . 19 23 23 23 23 23 26 26 26 Energy Gun 9 | . 28 6 4 7 8 14 22 20 23 10 . 12 Energy Cannon 5 | . . . 10 . . . . . . 10 12 13 Ballistic Gun 8 | . . . 11 18 21 14 7 6 7 1 . . Ballistic Cannon 2 | . . 14 . . . . . . . 4 12 . Peak Build Rating 101 | 7 7 9 14 38 80 78 84 86 86 101 100 86 Average Rating 52 | 5 7 8 11 28 48 76 83 80 86 93 95 80 On Entrance 48 | . 7 7 9 14 38 76 74 84 86 86 100 54 Naked Turns . | . . . . . . . . . . . . . Heaviest Build 131 | 11 11 18 33 45 57 50 55 115 115 131 131 125 Greatest Support 106 | 40 40 40 40 63 78 78 78 78 78 106 96 43 Greatest Overweight (x) 2 | . . . 2 1 2 . . 1 1 2 2 2 Average Overweight (x) . | . . . . . . . . . 1 1 1 2 Largest Inventory Capacity 25 | 8 8 8 10 15 15 15 15 25 25 25 25 25 Average Capacity 15 | 7 8 8 8 12 15 15 15 17 25 25 25 25 Most Carried 25 | 4 8 8 10 15 15 15 15 18 19 24 25 20 Average Carried 14 | 2 5 7 8 11 14 14 12 15 18 19 24 14 Final Capacity 25 | 8 8 8 10 15 15 15 15 25 25 25 25 25 Final Carried 24 | 3 8 8 10 15 15 14 15 18 19 24 21 13 Class Distribution -------------------- 41% | Gunner 32% | Mutant 15% | Scavenger-Gunner 5% | Commander-Gunner 4% | Derelict-Mutant Dominant Class ---------------- Mutant | -10/Materials Mutant | -10/Mines Mutant | -10/Subcaves Scavenger-Gunner | -8/Materials Scavenger-Gunner | -7/Factory Gunner | -7/Lower Caves Gunner | -7/Lower Caves Gunner | -7/Zion Gunner | -6/Proximity Caves Gunner | -6/Factory Commander-Gunner | -6/Extension Scavenger-Gunner | -6/Cetus Resources | -11 -10 -10 -10 -8 -7 -7 -7 -7 -6 -6 -6 -6 ----------- Run | Yrd Mat Min Sub Mat Fac Low Low Zio Pro Fac Ext Cet Matter Collected 4685 | 270 . 105 399 645 1270 155 134 60 42 504 1101 . Remotely . | . . . . . . . . . . . . . Salvage Created 11039 | 118 288 371 632 1425 2234 437 635 . 268 1836 2635 160 Parts 529 | 10 17 29 38 98 93 21 21 . 14 87 95 6 Haulers Intercepted 14 | . 1 . . 3 3 . . . . 3 4 . Recyclers Shooed 8 | 1 . . . . 3 . . . . 2 2 . Parts Field Recycled . | . . . . . . . . . . . . . Retrieved Matter . | . . . . . . . . . . . . . Parts Self-Destructed 92 | . . . 6 . . 23 29 . 34 . . . Prevented 6 | . . . . . . . 3 . 3 . . . Kills | -11 -10 -10 -10 -8 -7 -7 -7 -7 -6 -6 -6 -6 ------- Run | Yrd Mat Min Sub Mat Fac Low Low Zio Pro Fac Ext Cet Combat Hostiles Destroyed 181 | . 5 7 14 26 32 11 12 . 7 23 42 2 Melee 2 | . . 2 . . . . . . . . . . Guns 100 | . 5 2 4 19 25 11 12 . 7 14 . 1 Cannons 57 | . . 3 7 . . . . . . 8 39 . AOE 14 | . . . . 7 7 . . . . . . . Classes Destroyed 23 | 2 4 1 3 6 4 . . . 2 . 1 . Worker 7 | . 1 . . 2 3 . . . . 1 . . Builder 10 | . 1 1 . 3 3 . . . . . 2 . Tunneler 6 | 3 . 1 . . 1 . . . . . 1 . Hauler 14 | . 1 . . 3 3 . . . . 3 4 . Recycler 14 | 1 . . . 1 8 . . . . 2 2 . Mechanic 2 | . . . . 1 1 . . . . . . . Operator 1 | . . . . . 1 . . . . . . . Drone 1 | . . . . . . . . . 1 . . . Watcher 3 | . . . . 2 1 . . . . . . . Swarmer 23 | . . 3 . 4 . 6 . . 4 2 4 . Saboteur 1 | . . . . . . . . . . . 1 . Grunt 71 | . 5 4 1 12 12 4 10 . 1 9 13 . Brawler 5 | . . . . . 2 . 1 . . 1 1 . Duelist 6 | . . . . 1 1 . 1 . . 2 1 . Protector 3 | . . . . . 2 . . . . . 1 . Sentry 22 | . . . 1 4 3 1 . . . 1 12 . Specialist 4 | . . . . 2 . . . . . 1 1 . Hunter 16 | . . . . 2 8 . . . . 3 3 . Programmer 5 | . . . . . 4 . . . . 1 . . Heavy 4 | . . . . 1 . . . . . 3 . . Behemoth 3 | . . . . . . . . . 1 . 2 . Cetus Guard 2 | . . . . . . . . . . . . 2 Artisan 1 | . . . 1 . . . . . . . . . Subdweller 12 | . . . 12 . . . . . . . . . Thug 4 | . . 2 . . . . . . . . 2 . Savage 1 | . . . . . . . . . . . 1 . Butcher 2 | . . . . . . . . . . . 2 . Guerrilla 1 | . . . . . . . . . . . 1 . Best Kill Streak 20 | 4 6 4 3 20 19 6 4 . 3 7 8 2 Combat Bots Only 11 | . 3 3 3 11 10 6 4 . 3 7 6 2 Max Kills in Single Turn 4 | 1 2 1 1 4 2 1 1 . 2 1 3 1 Gunslinging 1 | . . . . . 1 . . . 1 . . . Exploded 3 | . . . . 3 2 . . . . . . . Melee 1 | . . 1 . . . . . . . . . . Uniques/NPCs Destroyed . | . . . . . . . . . . . . . Combat | -11 -10 -10 -10 -8 -7 -7 -7 -7 -6 -6 -6 -6 -------- Run | Yrd Mat Min Sub Mat Fac Low Low Zio Pro Fac Ext Cet Hostile Shots Fired 1059 | . 14 24 46 121 193 73 32 . 14 150 333 59 Missed 334 | . 3 5 14 31 72 20 11 . 4 39 123 12 Damage Taken 11249 | . 122 257 711 1588 1753 804 331 . 157 1954 2271 1301 Core 1852 | . 12 48 91 433 219 96 61 . 36 226 270 360 Absorbed by Shields 139 | . . . . . . . . . . . 139 . Regen/Repaired (Parts) 267 | . . . . . 148 . . 119 . . . . Core Remaining (%) 50 | 100 . . 39 21 . . . . 41 . . . Volleys Fired 465 | 9 17 16 66 67 77 19 25 . 8 64 85 12 Largest 4 | 2 2 2 2 3 4 4 4 . 4 4 4 3 Hottest 344 | 80 80 80 160 150 153 158 289 . 289 344 150 265 Shots Fired 1397 | 18 34 26 122 179 271 74 99 . 32 210 307 25 Gun 893 | 18 34 12 72 171 260 74 99 . 32 108 . 13 Cannon 486 | . . 14 50 . 1 . . . . 102 307 12 Launcher 18 | . . . . 8 10 . . . . . . . Special . | . . . . . . . . . . . . . Kinetic 654 | . . 14 52 101 199 36 25 . 8 51 168 . Thermal 722 | 18 34 12 70 70 72 38 74 . 24 159 139 12 Explosive 8 | . . . . 8 . . . . . . . . Electromagnetic 13 | . . . . . . . . . . . . 13 Robot Hit Streak 28 | 4 11 9 28 14 24 22 11 . 7 23 18 7 Robot Miss Streak 5 | 1 3 3 2 3 3 5 2 . 3 4 4 1 Penetration Max 1 | . . . . 1 . . . . . . . . Secondary Targets 21 | . . . . 3 7 4 1 . 3 3 . . Max Gunslinging Chain 2 | . . . . 1 1 1 1 . 2 1 . . Shots Hit Robots 890 | 13 25 25 77 122 186 42 55 . 17 133 177 18 Core Hits 441 | 5 14 15 20 63 107 19 23 . 10 58 100 7 Critical Kills 4 | . . . 3 . . . . . . . 1 . Critical Parts Destroyed 6 | . . . . 4 2 . . . . . . . Critical Strikes 32 | . . 1 4 8 6 1 2 . . 3 7 . Burn 14 | . . . . 4 4 1 2 . . 3 . . Meltdown 4 | . . . 3 . . . . . . . 1 . Destroy 7 | . . . 1 4 2 . . . . . . . Blast 7 | . . 1 . . . . . . . . 6 . Melee Attacks 25 | . . 9 16 . . . . . . . . . Impact . | . . . . . . . . . . . . . Slashing 25 | . . 9 16 . . . . . . . . . Piercing . | . . . . . . . . . . . . . Sneak Attacks 6 | . . 5 1 . . . . . . . . . Combat Hostiles 1 | . . 1 . . . . . . . . . . Follow-up Attacks . | . . . . . . . . . . . . . Damage Inflicted 25784 | 155 305 578 1527 3236 5319 805 1412 . 467 3847 7462 671 Guns 11755 | 155 305 111 774 2309 3184 805 1412 . 467 1940 . 293 Cannons 10542 | . . 188 753 . . . . . . 1846 7377 378 Explosions 3018 | . . . . 927 2091 . . . . . . . Melee 272 | . . 272 . . . . . . . . . . Ramming 197 | . . 7 . . 44 . . . . 61 85 . Kinetic 11054 | . . 188 547 1244 3721 244 257 . 52 819 3982 . Thermal 12618 | 155 305 111 980 1065 1131 561 1155 . 415 2967 3395 378 Explosive 1350 | . . . . 927 423 . . . . . . . Electromagnetic 293 | . . . . . . . . . . . . 293 Impact . | . . . . . . . . . . . . . Slashing 272 | . . 272 . . . . . . . . . . Piercing . | . . . . . . . . . . . . . Highest Corruption 5 | . . . . 1 1 1 1 1 . 3 5 5 Average Corruption 1 | . . . . 1 1 1 1 1 . 1 3 5 Corruption Purged . | . . . . . . . . . . . . . Corruption Blocked . | . . . . . . . . . . . . . Effects 58 | . . . . 5 2 5 4 1 . 3 34 4 Message Errors 16 | . . . . 1 . 3 . . . . 11 1 Matter Fused 6 | . . . . 1 . . 1 . . 2 1 1 Heat Flow Errors 5 | . . . . 2 . . . . . 1 2 . Energy Discharges 7 | . . . . . . . 2 . . . 5 . Parts Rejected 1 | . . . . . . 1 . . . . . . Parts Fused 1 | . . . . . . . . . . . 1 . Data Loss (minor) 8 | . . . . 1 1 . . . . . 5 1 Data Loss (major) 3 | . . . . . . . 1 . . . 2 . Misfires 5 | . . . . . 1 . . . . . 4 . Alerts 1 | . . . . . . . . 1 . . . . Weapon Failures 5 | . . . . . . 1 . . . . 3 1 Overload Shots 8 | . . . . . 2 . . . . 1 1 4 Effects 1 | . . . . . . . . . . 1 . . Energy Bleed 1 | . . . . . . . . . . 1 . . Overflow Damage 397 | . . 12 29 129 41 . . . . 37 149 . Projectiles 188 | . . 1 29 . . . . . . 23 135 . Explosions 167 | . . . . 129 38 . . . . . . . Melee 42 | . . 11 . . 3 . . . . 14 14 . Knockbacks 23 | . . 1 . . . . . . . 7 15 . Impact 1 | . . . . . . . . . . 1 . . Kinetic 18 | . . 1 . . . . . . . 5 12 . Secondary 4 | . . . . . . . . . . 1 3 . Self-Inflicted Damage 265 | . . . . 174 91 . . . . . . . Shots 6 | . . . . 3 3 . . . . . . . Rammed 4 | . . 1 . . 3 . . . . . . . Targets Rammed 16 | . . 1 . . 5 . . . . 5 5 . Kicked 10 | . . . . . . . . . . 5 5 . Crushed 2 | . . . . . 2 . . . . . . . Highest Temperature 501 | 162 144 227 204 288 264 101 473 . 271 501 107 437 Average Temperature 107 | 82 56 101 40 85 57 41 164 . 124 164 15 139 Received Heat Transfer 2675 | . 66 141 147 495 276 153 207 . . 471 521 198 Effects 7 | . . . . . . . . . . 7 . . Shutdowns 1 | . . . . . . . . . . 1 . . Energy Bleed 2 | . . . . . . . . . . 2 . . Interference 3 | . . . . . . . . . . 3 . . Short Circuit 1 | . . . . . . . . . . 1 . . Siege Activations . | . . . . . . . . . . . . . Robots Corrupted 3 | . . . . . 1 . . . . . 1 1 Combat Hostiles 1 | . . . . . . . . . . . . 1 Parts Fried 6 | . . . . . 2 . . . . . 2 2 Impact Corruptions 3 | . . . . . 1 . . . . 1 1 . Robots Melted 7 | . . . 3 . . . . . . 1 3 . Combat Hostiles 6 | . . . 3 . . . . . . 1 2 . Parts Melted 27 | . . . 6 3 1 2 1 . . 6 7 1 Heat Transferred 20649 | 350 675 250 1274 2185 2437 999 1665 . 518 4725 5100 471 Parts Sabotaged . | . . . . . . . . . . . . . Parts Stolen 1 | . . . . . . . 1 . . . . . Parts Stripped . | . . . . . . . . . . . . . Power Chain Reactions . | . . . . . . . . . . . . . Alert | -11 -10 -10 -10 -8 -7 -7 -7 -7 -6 -6 -6 -6 ------- Run | Yrd Mat Min Sub Mat Fac Low Low Zio Pro Fac Ext Cet Peak Influence 2000 | 20 158 174 . 587 505 . . . . 1160 2000 1127 Initial 1100 | . 13 19 . 3 198 . . . . 255 568 1100 Average 503 | 8 69 71 . 349 279 . . . . 519 1093 1107 Maximum Alert Level 5 | . . . . 2 2 . . . . 4 5 4 Low Security (%) 28 | 100 100 100 . 29 25 . . . . . . . Level 1 21 | . . . . 23 58 . . . . 24 . . Level 2 26 | . . . . 47 15 . . . . 65 16 . Level 3 12 | . . . . . . . . . . 4 46 2 Level 4 6 | . . . . . . . . . . 5 18 97 Level 5 2 | . . . . . . . . . . . 8 . High Security 2 | . . . . . . . . . . . 9 . Max Security . | . . . . . . . . . . . . . Squads Dispatched 36 | . 4 . . 5 4 . . . . 15 8 . Investigation 6 | . 3 . . 1 1 . . . . 1 . . Extermination 3 | . . . . . 1 . . . . 2 . . Reinforcement 15 | . 1 . . 4 1 . . . . 8 1 . Assault 7 | . . . . . . . . . . . 7 . Garrison 5 | . . . . . 1 . . . . 4 . . Intercept . | . . . . . . . . . . . . . Searches Triggered . | . . . . . . . . . . . . . Construction Impeded 4 | . . . . 1 . . . . . 2 1 . Haulers Reinforced 3 | . . . . . 1 . . . . 2 . . Active Scanning Responses . | . . . . . . . . . . . . . Cargo Convoy Interrupts 2 | . . . . . 1 . . . . 1 . . Stealth | -11 -10 -10 -10 -8 -7 -7 -7 -7 -6 -6 -6 -6 --------- Run | Yrd Mat Min Sub Mat Fac Low Low Zio Pro Fac Ext Cet Distress Signals 9 | . . . . 6 . . . . . 1 2 . Communications Jammed . | . . . . . . . . . . . . . Distress Signals . | . . . . . . . . . . . . . Times Spotted 283 | . 7 5 12 30 40 15 13 . 16 44 96 5 Peak Tracking Total 21 | . 3 2 2 7 8 7 4 . 3 4 21 5 Tactical Retreats 11 | . 1 1 . 4 1 . 2 . . . 2 . Traps | -11 -10 -10 -10 -8 -7 -7 -7 -7 -6 -6 -6 -6 ------- Run | Yrd Mat Min Sub Mat Fac Low Low Zio Pro Fac Ext Cet Traps Triggered 9 | . 2 . 1 . 2 . . . . 1 3 . Indirectly . | . . . . . . . . . . . . . Trap Hack Attempts . | . . . . . . . . . . . . . Triggered . | . . . . . . . . . . . . . Disarmed . | . . . . . . . . . . . . . Reprogrammed . | . . . . . . . . . . . . . Reused . | . . . . . . . . . . . . . Traps Extracted . | . . . . . . . . . . . . . Installed . | . . . . . . . . . . . . . Triggered . | . . . . . . . . . . . . . Machines | -11 -10 -10 -10 -8 -7 -7 -7 -7 -6 -6 -6 -6 ---------- Run | Yrd Mat Min Sub Mat Fac Low Low Zio Pro Fac Ext Cet Machines Disabled 19 | . . . . 3 3 1 . . . 7 5 . Max in Single Turn 3 | . . . . 2 3 1 . . . 1 1 . Garrison Access 1 | . . . . . 1 . . . . . . . Machines Repaired . | . . . . . . . . . . . . . Machines Dismantled . | . . . . . . . . . . . . . Machines Sabotaged . | . . . . . . . . . . . . . Overloaded Fab Kills . | . . . . . . . . . . . . . Hacking | -11 -10 -10 -10 -8 -7 -7 -7 -7 -6 -6 -6 -6 --------- Run | Yrd Mat Min Sub Mat Fac Low Low Zio Pro Fac Ext Cet Machines Accessed 27 | . 1 . 1 6 9 2 1 . . 4 3 . Terminals 15 | . 1 . . 6 4 1 . . . . 3 . Fabricators 3 | . . . . . 1 . . . . 2 . . Repair Stations 3 | . . . . . 2 . . . . 1 . . Recycling Units . | . . . . . . . . . . . . . Scanalyzers 1 | . . . . . 1 . . . . . . . Garrison Access 2 | . . . . . 1 . . . . 1 . . Total Hacks 77 | . 7 . 5 21 21 5 1 . . 11 6 . Successful 44 | . 3 . 5 6 17 5 1 . . 4 3 . Failed 33 | . 4 . . 15 4 . . . . 7 3 . Catastrophic 10 | . . . . 7 1 . . . . 2 . . Database Lockouts . | . . . . . . . . . . . . . Manual 53 | . 7 . . 16 8 . . . . 15 7 . Terminals 49 | . 7 . . 21 11 4 . . . . 6 . Fabricators 10 | . . . . . 3 . . . . 7 . . Repair Stations 6 | . . . . . 4 . . . . 2 . . Recycling Units . | . . . . . . . . . . . . . Scanalyzers 2 | . . . . . 2 . . . . . . . Garrison Access 3 | . . . . . 1 . . . . 2 . . Terminal Hacks 24 | . 3 . 5 4 3 5 1 . . . 3 . Record 9 | . . . 5 . . 4 . . . . . . Part Schematic 1 | . 1 . . . . . . . . . . . Robot Analysis 2 | . 2 . . . . . . . . . . . Open Door 5 | . . . . . . 1 1 . . . 3 . Branch Access Points 1 | . . . . 1 . . . . . . . . Terminal Index 1 | . . . . 1 . . . . . . . . Alert Level 2 | . . . . 1 1 . . . . . . . Unreport Threat 2 | . . . . 1 1 . . . . . . . Hauler Manifests 1 | . . . . . 1 . . . . . . . Fabricator Hacks 3 | . . . . . 2 . . . . 1 . . Network Status 1 | . . . . . . . . . . 1 . . Load Schematic 1 | . . . . . 1 . . . . . . . Build 1 | . . . . . 1 . . . . . . . Repair Station Hacks 4 | . . . . . 4 . . . . . . . Scan Component 2 | . . . . . 2 . . . . . . . Repair 2 | . . . . . 2 . . . . . . . Recycling Unit Hacks . | . . . . . . . . . . . . . Scanalyzer 2 | . . . . . 2 . . . . . . . Insert Component 1 | . . . . . 1 . . . . . . . Analyze 1 | . . . . . 1 . . . . . . . Garrison Access Hacks 1 | . . . . . 1 . . . . . . . Seal Access 1 | . . . . . 1 . . . . . . . Unauthorized Hacks 10 | . . . . 2 5 . . . . 3 . . Terminals 7 | . . . . 2 5 . . . . . . . Botnet 5 | . . . . 2 3 . . . . . . . Operators 1 | . . . . . 1 . . . . . . . Skim 1 | . . . . . 1 . . . . . . . Fabricators 3 | . . . . . . . . . . 3 . . Report 1 | . . . . . . . . . . 1 . . Liberate 2 | . . . . . . . . . . 2 . . Repair Stations . | . . . . . . . . . . . . . Recycling Units . | . . . . . . . . . . . . . Scanalyzers . | . . . . . . . . . . . . . Garrison Access . | . . . . . . . . . . . . . Data Cores Recovered 1 | . . . . . 1 . . . . . . . Used . | . . . . . . . . . . . . . Hacking Detections 19 | . 1 . . 6 6 . . . . 4 2 . Full Trace Events 6 | . 1 . . 3 1 . . . . 1 . . Feedback Events 1 | . . . . 1 . . . . . . . . Corruption 1 | . . . . 1 . . . . . . . . Feedback Blocked . | . . . . . . . . . . . . . Robot Schematics Acquired . | . . . . . . . . . . . . . Robots Built . | . . . . . . . . . . . . . Authchips . | . . . . . . . . . . . . . Time . | . . . . . . . . . . . . . Total Robot Build Rating . | . . . . . . . . . . . . . Part Schematics Acquired 2 | . 1 . . . 1 . . . . . . . Parts Built 1 | . . . . . 1 . . . . . . . Authchips . | . . . . . . . . . . . . . Time 51 | . . . . . 51 . . . . . . . Total Part Build Rating 1 | . . . . . 1 . . . . . . . Parts Repaired 2 | . . . . . 2 . . . . . . . Time 92 | . . . . . 92 . . . . . . . Parts Recycled . | . . . . . . . . . . . . . Recycled Matter . | . . . . . . . . . . . . . Retrieved Matter . | . . . . . . . . . . . . . Retrieved Components . | . . . . . . . . . . . . . Parts Scanalyzed 1 | . . . . . 1 . . . . . . . Part Schematics Acquired 1 | . . . . . 1 . . . . . . . Parts Damaged . | . . . . . . . . . . . . . Bothacking | -11 -10 -10 -10 -8 -7 -7 -7 -7 -6 -6 -6 -6 ------------ Run | Yrd Mat Min Sub Mat Fac Low Low Zio Pro Fac Ext Cet Used RIF Installer . | . . . . . . . . . . . . . Robots Hacked . | . . . . . . . . . . . . . Non-combat . | . . . . . . . . . . . . . Combat . | . . . . . . . . . . . . . Robot Hacks Applied . | . . . . . . . . . . . . . Relay Couplers Released . | . . . . . . . . . . . . . Fabnet Peak Effective % . | . . . . . . . . . . . . . Robots Rewired 20 | . . . . . . . . . . . 20 . Allies Hacked . | . . . . . . . . . . . . . Hacks Repelled . | . . . . . . . . . . . . . Allies | -11 -10 -10 -10 -8 -7 -7 -7 -7 -6 -6 -6 -6 -------- Run | Yrd Mat Min Sub Mat Fac Low Low Zio Pro Fac Ext Cet Total Allies 40 | . . . . . . . . 7 . 5 28 . Largest Group 16 | . . . . . . . . 7 7 3 16 . Highest-Rated Group 519 | . . . . . . . . 244 244 210 519 . Highest-Rated Ally 159 | . . . . . . . . 41 41 96 159 . Zionite Dispatches 3 | . . . . . . . . . . 2 1 . Light 2 | . . . . . . . . . . 1 1 . Recon 1 | . . . . . . . . . . 1 . . Total Orders 1 | . . . . . . . . . . 1 . . EXPLORE 1 | . . . . . . . . . . 1 . . Ally Attacks 370 | . . . . . . . . . 55 96 219 . Total Damage 7782 | . . . . . . . . . 1015 2764 4003 . Kills 71 | . . . . . . . . . 14 24 33 . Allies Corrupted . | . . . . . . . . . . . . . Allies Melted . | . . . . . . . . . . . . . Intel | -11 -10 -10 -10 -8 -7 -7 -7 -7 -6 -6 -6 -6 ------- Run | Yrd Mat Min Sub Mat Fac Low Low Zio Pro Fac Ext Cet Robot Analysis Total 2 | . 2 . . . . . . . . . . . Derelict Logs Recovered 11 | . . 2 1 . . 2 3 2 1 . . . Drone Launches 2 | . . . . . . . . . . 2 . . Drone Recoveries . | . . . . . . . . . . . . . Decoded 0b10 Intel 31 | . . . . . . . . . . 28 3 . Traps 15 | . . . . . . . . . . 15 . . Emergency Access 12 | . . . . . . . . . . 12 . . Garrisons 1 | . . . . . . . . . . 1 . . Exits 3 | . . . . . . . . . . . 3 . Zionite Intel Received 1 | . . . . . . . . . . . 1 . Depthwide Sectors/-1 1 | . . . . . . . . . . . 1 . Exploration | -11 -10 -10 -10 -8 -7 -7 -7 -7 -6 -6 -6 -6 ------------- Run | Yrd Mat Min Sub Mat Fac Low Low Zio Pro Fac Ext Cet Turns Passed 15696 | 125 524 756 4222 837 1878 891 626 1413 971 1525 1834 94 Spaces Moved 7775 | 59 278 404 1824 381 871 685 447 1040 490 620 660 16 Core 11 | 11 . . . . . . . . . . . . Treads 2554 | 48 278 404 840 279 705 . . . . . . . Legs 4124 | . . . . . 166 685 447 1040 490 620 660 16 Wheels 1086 | . . . 984 102 . . . . . . . . Hover . | . . . . . . . . . . . . . Flight . | . . . . . . . . . . . . . Fastest Speed 50 | 50 160 160 110 110 120 120 120 120 190 190 190 260 Average Speed 156 | 139 160 160 159 149 156 120 120 134 190 190 196 260 Slowest Speed 260 | 160 160 160 240 163 260 120 120 190 190 260 260 260 Overloaded Moves . | . . . . . . . . . . . . . Propulsion Burnouts . | . . . . . . . . . . . . . Robots Hopped . | . . . . . . . . . . . . . Cave-ins Triggered . | . . . . . . . . . . . . . Exploration Rate (%) 55 | 5 53 84 95 42 22 75 59 90 68 28 87 11 Regions Visited 12 Branch Regions 8 Pre-discovered Areas 11 | . . 2 2 . . . 1 1 1 . 4 . Known Exits Taken 5 | . . . 1 . 1 . . . 1 1 1 . Unknown Exits Taken 7 | 1 1 1 . 1 . 1 1 1 . . . . Scrap Searched 24 | . . 1 11 . . 1 4 3 4 . . . Spaces Dug 6 | . . . 3 . 1 . . . . . . 2 Terrain Destroyed 254 | . . . 8 76 50 1 25 . 3 25 63 3 Melee . | . . . . . . . . . . . . . Projectile 132 | . . . 8 2 2 1 25 . 3 25 63 3 AOE 122 | . . . . 74 48 . . . . . . . Terrain Rammed . | . . . . . . . . . . . . . Walls Destroyed . | . . . . . . . . . . . . . Machines Disabled . | . . . . . . . . . . . . . Actions | -11 -10 -10 -10 -8 -7 -7 -7 -7 -6 -6 -6 -6 --------- Run | Yrd Mat Min Sub Mat Fac Low Low Zio Pro Fac Ext Cet Total 10366 | 83 325 471 2994 523 1293 723 498 1057 518 839 993 49 Wait 1550 | . 22 31 1028 20 259 18 18 6 20 100 15 13 Move 7763 | 58 277 403 1823 380 870 684 446 1039 489 619 659 16 Hop . | . . . . . . . . . . . . . Pick Up 93 | 9 7 2 15 11 23 . 3 3 1 16 3 . Fast Attach 63 | 1 . . 10 20 11 1 2 4 . 6 8 . Attach 49 | 6 . . 3 7 8 1 2 . . 11 5 6 Detach 5 | . . . . 2 2 . . . . 1 . . Swap 43 | . . 5 14 2 13 . . 1 . 7 1 . Drop 92 | . 2 4 19 14 25 . 2 4 . 10 10 2 Fire 465 | 9 17 16 66 67 77 19 25 . 8 64 85 12 Melee 25 | . . 9 16 . . . . . . . . . Ram . | . . . . . . . . . . . . . Kick 10 | . . . . . . . . . . 5 5 . Crush 6 | . . 1 . . 5 . . . . . . . Escape Stasis 9 | . . . . . . . . . . . 9 . Rewire 193 | . . . . . . . . . . . 193 . Trap . | . . . . . . . . . . . . . Miscellaneous . | . . . . . . . . . . . . . Route ------- -11/Scrapyard -10/Materials (discovered 2 exits: [*Mat] / [*Min]) -10/Mines (discovered 3 exits: [*Mat x2] / *Sub) -10/Subcaves (discovered 3 exits: *Mat x2 / Rec) -8/Materials -7/Factory (discovered 6 exits: *Fac x3 / [*Sto] / *Low x2) -7/Lower Caves -7/Lower Caves (discovered 2 exits: Fac / [*Zio]) -7/Zion -6/Proximity Caves -6/Factory -6/Extension (discovered 3 exits: *Fac x2 / *Cet) -6/Cetus History --------- Turn | Location | Event 5 | -11/Scrapyard | Discovered new exit (range 15) 126 | -11/Scrapyard | Entered Materials 317 | -10/Materials | Build established: Mutant 429 | -10/Materials | Discovered new exit (range 6) 568 | -10/Materials | Discovered new exit (range 10) 650 | -10/Materials | Entered Mines 801 | -10/Mines | Learned location of Zion (-7) 872 | -10/Mines | Received a Rocket Launcher from a helpful Derelict 967 | -10/Mines | Discovered new exit (range 12) 994 | -10/Mines | Joined a pair of Derelicts in attacking an 0b10 outpost 1038 | -10/Mines | Discovered new exit (range 5) 1400 | -10/Mines | Discovered new exit (range 4) 1406 | -10/Mines | Entered Subcaves 2128 | -10/Subcaves | Shifting Twisted Machinery released Riot Gun 2140 | -10/Subcaves | Shifting Twisted Machinery released Riot Gun 2546 | -10/Subcaves | Disturbed a concealed Subdweller 2714 | -10/Subcaves | Visited Clippyterm 2721 | -10/Subcaves | Learned 40 Factory zone layouts 2721 | -10/Subcaves | Identified exit to Materials 2721 | -10/Subcaves | Identified exit to Recycling 3501 | -10/Subcaves | Shifting Twisted Machinery released Battle Cannon 3507 | -10/Subcaves | Shifting Twisted Machinery released Battle Rifle 3585 | -10/Subcaves | Core integrity fell below 50% 4995 | -10/Subcaves | Learned location of Recycling (-7) 5028 | -10/Subcaves | A swath of the cavern ceiling suddenly collapsed 5056 | -10/Subcaves | A swath of the cavern ceiling suddenly collapsed 5204 | -10/Subcaves | Met a Zionite searching for "candidates" 5219 | -10/Subcaves | Shifting Twisted Machinery released Mak. Laser 5221 | -10/Subcaves | Shifting Twisted Machinery released Sub. Beam Cannon 5227 | -10/Subcaves | Build established: Derelict-Mutant 5628 | -10/Subcaves | Entered Materials 5628 | -8/Materials | Evolved 4 slots: Propulsion x1, Utility x2, Weapon x1 5956 | -8/Materials | Core integrity fell below 50% 5994 | -8/Materials | Destroyed 11 combat bots 6032 | -8/Materials | Lost 6 parts (1p3n2w) 6153 | -8/Materials | Discovered new exit (range 5) 6325 | -8/Materials | Build established: Scavenger-Gunner 6465 | -8/Materials | Entered Factory 6465 | -7/Factory | Evolved 2 slots: Utility x1, Weapon x1 6466 | -7/Factory | Identified exit to Factory 6466 | -7/Factory | Identified exit to Lower Caves 6531 | -7/Factory | Repaired Multitool 7232 | -7/Factory | Garrison activated, responded to threat 7595 | -7/Factory | Repaired Enh. Autogun? 7613 | -7/Factory | Discovered new exit (range 8) 7862 | -7/Factory | Fabricated Huge Storage Unit (x1) 8041 | -7/Factory | Cargo convoy interrupted 8099 | -7/Factory | Destroyed 10 combat bots 8104 | -7/Factory | Lost 6 parts (3n3w) 8153 | -7/Factory | Found Prototype Device 8163 | -7/Factory | Identified Exp. ECM Suite 8343 | -7/Factory | Entered Lower Caves 8389 | -7/Lower Caves | Build established: Gunner 8539 | -7/Lower Caves | Encountered a Warlord checkpoint 8833 | -7/Lower Caves | Learned Factory terminal intel 8835 | -7/Lower Caves | Attracted the attention of an 0b10 base 8996 | -7/Lower Caves | Learned Research terminal intel 8996 | -7/Lower Caves | Learned Extension trap positions 8996 | -7/Lower Caves | Learned 8 Research zone layouts 8996 | -7/Lower Caves | Learned location of 1 exit from Research 9087 | -7/Lower Caves | Discovered new exit (range 8) 9091 | -7/Lower Caves | Learned Factory stockpile data 9191 | -7/Lower Caves | Attracted the attention of an 0b10 checkpoint 9234 | -7/Lower Caves | Entered another Lower Caves area 9624 | -7/Lower Caves | Core integrity fell below 50% 9780 | -7/Lower Caves | Discovered new exit (range 6) 9860 | -7/Lower Caves | Entered Zion 9937 | -7/Zion | Discovered new exit (range 13) 9942 | -7/Zion | Given the Hacking Drone Bay 9993 | -7/Zion | System corruption cleaned by Quarantine Array 10305 | -7/Zion | Acquired unknown access codes intercepted by a Zionite 10431 | -7/Zion | Given A8's code to call for help 10603 | -7/Zion | Learned Factory security intel 10674 | -7/Zion | Met Imprinter 10694 | -7/Zion | Imprinted 10696 | -7/Zion | Declared Zion's savior 10825 | -7/Zion | Gained Derelict followers 11091 | -7/Zion | Found Prototype Device 11273 | -7/Zion | Entered Proximity Caves 11273 | -6/Proximity Caves | Accompanied by 7 allies 11557 | -6/Proximity Caves | Attracted the attention of an 0b10 checkpoint 11625 | -6/Proximity Caves | Spotter reported a threat 11969 | -6/Proximity Caves | Lost 5 allies 12062 | -6/Proximity Caves | Discovered exit to Factory (range 17) 12131 | -6/Proximity Caves | Spotted B-75 Beast 12133 | -6/Proximity Caves | Destroyed B-75 Beast 12244 | -6/Proximity Caves | Entered Factory 12244 | -6/Factory | Accompanied by 1 ally 12244 | -6/Factory | Evolved 2 slots: Propulsion x1, Utility x1 12245 | -6/Factory | Identified exit to Extension 12248 | -6/Factory | Loaded intel: 28 terminal locations 12288 | -6/Factory | Identified Hacking Drone Bay 12528 | -6/Factory | Garrison activated, responded to threat 12602 | -6/Factory | Destroyed 7 combat bots 12610 | -6/Factory | Lost 4 parts (1u3w) 12744 | -6/Factory | Zion Light squad teleported in 12868 | -6/Factory | Found Prototype Processor 12869 | -6/Factory | Identified Exp. Targeting Computer 12873 | -6/Factory | Found Faulty Exp. Targeting Computer 12970 | -6/Factory | Garrison activated, responded to threat 13171 | -6/Factory | Enhanced Grunt warped into view, answering call for help 13173 | -6/Factory | Enhanced Grunt warped into view, answering call for help 13175 | -6/Factory | Zion Recon squad teleported in 13235 | -6/Factory | Cargo convoy interrupted 13477 | -6/Factory | Terminal network hard line cut 13769 | -6/Factory | Entered Extension 13769 | -6/Extension | Accompanied by 1 ally 13770 | -6/Extension | Loaded intel: 17 trap records 13833 | -6/Extension | Rescued a captive Derelict 13839 | -6/Extension | Rescued a captive Derelict 13858 | -6/Extension | Rescued a captive Derelict 13859 | -6/Extension | Rescued a captive Derelict 14041 | -6/Extension | Lost 6 allies 14236 | -6/Extension | Retrieved Zion intel report: Depthwide Sectors/-5 14237 | -6/Extension | Zion Light squad teleported in 14373 | -6/Extension | Build established: Commander-Gunner 14469 | -6/Extension | First assault squad dispatched 14689 | -6/Extension | Lost 5 allies 14894 | -6/Extension | Disrupted transfer network 14966 | -6/Extension | Lost 4 allies 15010 | -6/Extension | Spotted B-75 Beast 15030 | -6/Extension | Destroyed B-75 Beast 15031 | -6/Extension | Lost 5 allies 15035 | -6/Extension | Spotted B-75 Beast 15068 | -6/Extension | Identified exit to Factory 15103 | -6/Extension | Destroyed B-75 Beast 15151 | -6/Extension | Terminal network hard line cut 15296 | -6/Extension | Build established: Gunner 15307 | -6/Extension | Rescued A7 15421 | -6/Extension | High security lockdown imminent 15501 | -6/Extension | High security lockdown engaged 15535 | -6/Extension | Identified exit to Cetus 15597 | -6/Extension | Core integrity fell below 50% 15603 | -6/Extension | Entered Cetus 15630 | -6/Cetus | Lost 3 allies 15632 | -6/Cetus | Lost 10 parts (1p5n4w) 15639 | -6/Cetus | Spotted Cetus Guard 15639 | -6/Cetus | Spotted Cetus Guard 15639 | -6/Cetus | Spotted Cetus Guard 15639 | -6/Cetus | Spotted Cetus Guard 15674 | -6/Cetus | Destroyed Cetus Guard 15685 | -6/Cetus | Core integrity fell below 20% 15692 | -6/Cetus | Destroyed Cetus Guard 15697 | -6/Cetus | Destroyed by Cetus Guard with Advanced Variable Charge Gun Last Messages --------------- 15672_ Carbon-fiber Leg destroyed. 15672_ Penetrated by Slug. 15674_ Adv. Heat Sink fried. 15674_ Cetus Guard destroyed. 15675_ Penetrated by Slug. 15677_ Exp. Heat Sink destroyed. 15678_ Penetrated by Slug. 15679_ System corrupted: Component data lost. 15681_ Hvy. Tesla Rifle destroyed. 15681_ Penetrated by Slug. 15687_ Slug penetrates Wall. 15690_ Penetrated by Slug. 15690_ Imp. Medium Treads destroyed. 15690_ Penetrated by Slug. 15692_ Cetus Guard system terminally corrupted. 15692_ Adv. Heat Sink fried. 15692_ Prototype Energy Gun melted. 15692_ Penetrated by Slug. 15694_ Hvy. Tesla Rifle destroyed. 15694_ Penetrated by Slug. Map ----- +----------------------------------------------------+ | ???????????????????????????????????????? | | ???????????????????????????????????????? | | ???????????????????????????????????????? | | ???????????????????????????????????????? | | ???????????????????????????????????????? | | ???????????????????????????????????????? | | ???????????????????????????????????????? | | ???????????????????????????????????????? | | ???????????????????????????????????????? | | ???????????????????????????????????????? | | ???????????????????????????????????????? | | ???????????????????????????????????????? | | ???????????????????????????????????????? | | ???????????????????????????????????????? | | ???????????????????????????????????????? | | ???????????????????????????????????????? | | ???????????????????????????????????????? | | ???????????????????????????????????????? | | ???????????????????????????????????????? | | ???????????????????????????????????????? | | ???????????????????????????????????????? | | ???????????????????????????????????????? | | ????????#????????#?????????????????????? | | ????????# ##### ##????????????????????? | | ?########;;;;;##;;#;### ###### #???? | | ?# @ =%[ +?? | | ?# ! Y*! w +?? | | ?# ! !Y[ +?? | | ?#####;;############;########### #???? | | ?????????????????????#?????????????????? | | ???????????????????????????????????????? | | ???????????????????????????????????????? | | ???????????????????????????????????????? | | ???????????????????????????????????????? | | ???????????????????????????????????????? | | ???????????????????????????????????????? | | ???????????????????????????????????????? | | ???????????????????????????????????????? | | ???????????????????????????????????????? | | ???????????????????????????????????????? | | ???????????????????????????????????????? | | ???????????????????????????????????????? | | ???????????????????????????????????????? | | ???????????????????????????????????????? | | ???????????????????????????????????????? | | ???????????????????????????????????????? | | ???????????????????????????????????????? | | ???????????????????????????????????????? | | ???????????????????????????????????????? | | ???????????????????????????????????????? | +----------------------------------------------------+ Best States ------------- Heat Dissipation 64 Coolant Potential 50 Energy Generation 25 Energy Capacity 340 Matter Stores 300 Matter Capacity 300 Sight Range 23 Terrain Scan Density 10 Jamming Range 12 Utility Shielding 90 Evasion (%) 55 Targeting Accuracy 16 Core Analysis 6 Armor Integrity Analysis 30 Recoil Reduction 3 Item Schematics ----------------- Huge Storage Unit | -10/Materials | Hacked Multitool | -7/Factory | Scanalyzed Robot Schematics ------------------ None Fabricated ------------ Huge Storage Unit | x1 | -7/Factory Alien Tech Used ----------------- None Achievements -------------- None Challenges ------------ None Game ------ Seed HardlightGravitonNullifier Manual? 0 Play Time 01:32:14 Cumulative 898.0 hours Start 2024.09.13 @ 17:12:27 End 2024.09.13 @ 18:55:37 Sessions 1 Manual Loads 0 Difficulty Rogue Special Mode None Game No. 559 Rogue 552 Adventurer 0 Explorer 7 Win Type - Total 61 Types 22/6/21/2/0/1/6/1/2 Lore% 85 Gallery% 95 Achievement% 85 Wizard Run 0 Options --------- Layout 2 ASCII 0 Keyboard 0 Movement Numpad Keybinds 0 Fullscreen 1 Font 24/Smallcaps Map View 50x44 Zoom Use 0% Tactical HUD 1 Map Filters NONE Filters NONE Steam 1 RUN: 834fc93d-e893-412e-901c-c903b207b58a